[Event "GrandPrix_30.05"]
[Site "Chess.com"]
[Date "2020.05.30"]
[Round "2"]
[White "BogdanBelyakov89"]
[Black "SamadovRead"]
[Result "1-0"]
[WhiteElo "2269"]
[BlackElo "1969"]
[TimeControl "600+2"]
[EndTime "8:55:12 PDT"]
[Termination "BogdanBelyakov89 won by resignation"]

1. e4 {[%clk 0:10:01.9]} 1... c5 {[%clk 0:10:00.4]} 2. c3 {[%clk 0:10:02.3]}
2... Nf6 {[%clk 0:10:00.4]} 3. e5 {[%clk 0:10:03]} 3... Nd5 {[%clk 0:10:00.9]}
4. Nf3 {[%clk 0:10:04.9]} 4... Nc6 {[%clk 0:10:01]} 5. d4 {[%clk 0:10:04.8]}
5... cxd4 {[%clk 0:10:01.5]} 6. cxd4 {[%clk 0:10:06.7]} 6... d6 {[%clk
0:10:02.6]} 7. Bc4 {[%clk 0:10:07]} 7... dxe5 {[%clk 0:10:03.1]} 8. dxe5 {[%clk
0:10:08.9]} 8... Ndb4 {[%clk 0:10:03]} 9. Qb3 {[%clk 0:10:07.2]} 9... e6 {[%clk
0:10:02.9]} 10. O-O {[%clk 0:10:07.9]} 10... Na5 {[%clk 0:10:02.5]} 11. Qa4+
{[%clk 0:10:07.6]} 11... Bd7 {[%clk 0:10:01.9]} 12. Bb5 {[%clk 0:10:08.5]} 12...
Bxb5 {[%clk 0:10:02]} 13. Qxb5+ {[%clk 0:10:10.4]} 13... Nac6 {[%clk 0:10:02.1]}
14. Nc3 {[%clk 0:10:10.3]} 14... Qd3 {[%clk 0:10:00.6]} 15. Rd1 {[%clk
0:09:50.3]} 15... Qxb5 {[%clk 0:09:43.4]} 16. Nxb5 {[%clk 0:09:52.2]} 16... Rc8
{[%clk 0:09:43.3]} 17. Bg5 {[%clk 0:06:58.4]} 17... h6 {[%clk 0:05:48]} 18. Bh4
{[%clk 0:06:57.4]} 18... g5 {[%clk 0:05:45.6]} 19. Bg3 {[%clk 0:06:56.8]} 19...
Nd5 {[%clk 0:05:13.4]} 20. Rac1 {[%clk 0:06:42.5]} 20... a6 {[%clk 0:04:55.5]}
21. Nbd4 {[%clk 0:05:42.8]} 21... Kd7 {[%clk 0:04:34.1]} 22. h4 {[%clk
0:04:36.9]} 22... Be7 {[%clk 0:03:56.2]} 23. hxg5 {[%clk 0:04:12.3]} 23... hxg5
{[%clk 0:03:56]} 24. Nxc6 {[%clk 0:04:09.3]} 24... Rxc6 {[%clk 0:03:54.9]} 25.
Rxc6 {[%clk 0:04:08.3]} 25... Kxc6 {[%clk 0:03:54.9]} 26. Nd4+ {[%clk
0:03:34.3]} 26... Kd7 {[%clk 0:03:53.5]} 27. Nc2 {[%clk 0:03:10.4]} 27... Bc5
{[%clk 0:03:14]} 28. Rd3 {[%clk 0:02:45.7]} 28... Rc8 {[%clk 0:02:55.3]} 29. Rd2
{[%clk 0:02:28.8]} 29... Ke7 {[%clk 0:02:30.3]} 30. Kf1 {[%clk 0:02:21.1]} 30...
Rh8 {[%clk 0:02:21.1]} 31. Ke2 {[%clk 0:02:15.9]} 31... Rh1 {[%clk 0:02:08]} 32.
Nd4 {[%clk 0:01:56]} 32... Bxd4 {[%clk 0:01:25.3]} 33. Rxd4 {[%clk 0:01:55]}
33... Rb1 {[%clk 0:01:26.6]} 34. Rd2 {[%clk 0:01:50.5]} 34... b5 {[%clk
0:01:21.5]} 35. Kf3 {[%clk 0:01:38.3]} 35... Rg1 {[%clk 0:00:58.9]} 36. Kg4
{[%clk 0:01:29.8]} 36... Rxg2 {[%clk 0:00:56.7]} 37. Rd1 {[%clk 0:01:09]} 37...
f5+ {[%clk 0:00:40.6]} 38. exf6+ {[%clk 0:01:06.5]} 38... Kxf6 {[%clk
0:00:39.1]} 39. Kf3 {[%clk 0:01:06.4]} 39... Rxg3+ {[%clk 0:00:40.2]} 40. fxg3
{[%clk 0:01:03.5]} 40... Kf5 {[%clk 0:00:41]} 41. g4+ {[%clk 0:01:02.9]} 41...
Ke5 {[%clk 0:00:42.4]} 42. Re1+ {[%clk 0:01:01.3]} 42... Kd6 {[%clk 0:00:42.7]}
43. Rh1 {[%clk 0:01:02]} 43... Ke5 {[%clk 0:00:36.1]} 44. Rh6 {[%clk 0:00:56.8]}
44... Nb4 {[%clk 0:00:34.7]} 45. Rg6 {[%clk 0:00:56.2]} 45... Nxa2 {[%clk
0:00:34.9]} 46. Rxg5+ {[%clk 0:00:56.5]} 46... Kf6 {[%clk 0:00:36.3]} 47. Rg8
{[%clk 0:00:57.1]} 47... Nb4 {[%clk 0:00:35.2]} 48. Rd8 {[%clk 0:00:55.2]} 48...
Nd5 {[%clk 0:00:32.2]} 49. Kg3 {[%clk 0:00:51.1]} 49... a5 {[%clk 0:00:30.5]}
50. Kh4 {[%clk 0:00:51.4]} 50... a4 {[%clk 0:00:29.6]} 51. Kh5 {[%clk
0:00:49.9]} 51... b4 {[%clk 0:00:25.5]} 52. Kh6 {[%clk 0:00:49.6]} 52... a3
{[%clk 0:00:18.8]} 53. bxa3 {[%clk 0:00:50.4]} 53... bxa3 {[%clk 0:00:20.7]} 54.
g5+ {[%clk 0:00:51.6]} 54... Ke7 {[%clk 0:00:19.8]} 55. Ra8 {[%clk 0:00:51.4]}
55... e5 {[%clk 0:00:17.8]} 56. g6 {[%clk 0:00:51.4]} 56... e4 {[%clk
0:00:16.2]} 57. g7 {[%clk 0:00:48.3]} 57... Nf6 {[%clk 0:00:17.4]} 58. Kg6
{[%clk 0:00:45]} 58... e3 {[%clk 0:00:14.9]} 59. Rxa3 {[%clk 0:00:44.2]} 59...
e2 {[%clk 0:00:13.1]} 60. Re3+ {[%clk 0:00:43]} 60... Kd6 {[%clk 0:00:15]} 61.
Kxf6 {[%clk 0:00:43.4]} 1-0

[Event "GrandPrix_30.05"]
[Site "Chess.com"]
[Date "2020.05.30"]
[Round "2"]
[White "Winawer81"]
[Black "szachuspl"]
[Result "1/2-1/2"]
[WhiteElo "2159"]
[BlackElo "2357"]
[TimeControl "600+2"]
[EndTime "8:55:20 PDT"]
[Termination "Game drawn by repetition"]

1. e4 {[%clk 0:10:01.9]} 1... c5 {[%clk 0:10:00.3]} 2. c3 {[%clk 0:10:02]} 2...
Nf6 {[%clk 0:10:00.4]} 3. e5 {[%clk 0:10:02.2]} 3... Nd5 {[%clk 0:10:01.4]} 4.
Nf3 {[%clk 0:10:03.1]} 4... e6 {[%clk 0:10:00.3]} 5. Bc4 {[%clk 0:10:00.2]} 5...
Nb6 {[%clk 0:10:01]} 6. Bb3 {[%clk 0:10:00.1]} 6... c4 {[%clk 0:10:02.4]} 7. Bc2
{[%clk 0:10:00.4]} 7... Nc6 {[%clk 0:10:03.5]} 8. O-O {[%clk 0:09:58.4]} 8... d6
{[%clk 0:10:01.9]} 9. exd6 {[%clk 0:09:57.1]} 9... Bxd6 {[%clk 0:10:00.6]} 10.
d4 {[%clk 0:09:37.5]} 10... Be7 {[%clk 0:09:51.7]} 11. Qe2 {[%clk 0:09:31.9]}
11... O-O {[%clk 0:09:51.1]} 12. Nbd2 {[%clk 0:08:46.1]} 12... Na5 {[%clk
0:09:31.1]} 13. b4 {[%clk 0:08:27.6]} 13... cxb3 {[%clk 0:09:29.9]} 14. axb3
{[%clk 0:08:27.8]} 14... Nd5 {[%clk 0:09:21.5]} 15. Bb2 {[%clk 0:08:22.2]} 15...
b6 {[%clk 0:09:20.2]} 16. b4 {[%clk 0:07:57.1]} 16... Nc6 {[%clk 0:09:13.8]} 17.
b5 {[%clk 0:07:55.9]} 17... Na5 {[%clk 0:09:09.2]} 18. Qe4 {[%clk 0:07:23.7]}
18... f5 {[%clk 0:08:47.2]} 19. Qe2 {[%clk 0:07:06.1]} 19... Bd7 {[%clk
0:08:25.4]} 20. c4 {[%clk 0:06:44.1]} 20... Nf4 {[%clk 0:08:09]} 21. Qe3 {[%clk
0:06:35.5]} 21... Bd6 {[%clk 0:07:38]} 22. Ne5 {[%clk 0:05:57.3]} 22... Ng6
{[%clk 0:07:32.8]} 23. f4 {[%clk 0:05:27.4]} 23... Rc8 {[%clk 0:07:29.8]} 24.
Bd3 {[%clk 0:05:24.9]} 24... Nxe5 {[%clk 0:07:16.4]} 25. fxe5 {[%clk 0:05:23.8]}
25... Bb4 {[%clk 0:07:16.7]} 26. Ba3 {[%clk 0:04:41.8]} 26... Bxd2 {[%clk
0:06:59.2]} 27. Qxd2 {[%clk 0:04:41]} 27... Nb3 {[%clk 0:07:00.4]} 28. Qb2
{[%clk 0:04:35.8]} 28... Nxa1 {[%clk 0:06:59.1]} 29. Bxf8 {[%clk 0:04:33.1]}
29... Qxf8 {[%clk 0:06:59.3]} 30. Rxa1 {[%clk 0:04:18.4]} 30... Rc7 {[%clk
0:07:00.4]} 31. Qa3 {[%clk 0:04:14.2]} 31... Qc8 {[%clk 0:06:50.2]} 32. Qd6
{[%clk 0:04:05.5]} 32... h6 {[%clk 0:06:40.7]} 33. h3 {[%clk 0:04:01.7]} 33...
Be8 {[%clk 0:06:32.6]} 34. Kh2 {[%clk 0:02:53.3]} 34... Bf7 {[%clk 0:06:33.1]}
35. d5 {[%clk 0:02:40.1]} 35... Rd7 {[%clk 0:05:45.5]} 36. Qc6 {[%clk
0:02:39.3]} 36... Qe8 {[%clk 0:05:33.4]} 37. d6 {[%clk 0:02:17.5]} 37... Qd8
{[%clk 0:05:24.1]} 38. c5 {[%clk 0:02:11.9]} 38... bxc5 {[%clk 0:05:22.7]} 39.
Qxc5 {[%clk 0:02:12.1]} 39... Qb8 {[%clk 0:05:21.8]} 40. Qc6 {[%clk 0:02:02.8]}
40... Be8 {[%clk 0:05:15.7]} 41. Bc4 {[%clk 0:02:00.5]} 41... Kh8 {[%clk
0:03:13.7]} 42. Bxe6 {[%clk 0:01:30.9]} 42... Rb7 {[%clk 0:03:13.2]} 43. Qf3
{[%clk 0:00:59.9]} 43... Bxb5 {[%clk 0:02:47.4]} 44. Qxf5 {[%clk 0:01:00.1]}
44... Qe8 {[%clk 0:02:32.6]} 45. Bd5 {[%clk 0:00:55.5]} 45... Rd7 {[%clk
0:02:20.3]} 46. Be4 {[%clk 0:00:50.2]} 46... g6 {[%clk 0:02:12.9]} 47. Qxg6
{[%clk 0:00:44.9]} 47... Qxe5+ {[%clk 0:02:13.1]} 48. g3 {[%clk 0:00:40.6]}
48... Qb2+ {[%clk 0:02:09.9]} 49. Bc2 {[%clk 0:00:39.1]} 49... Qxa1 {[%clk
0:01:24.3]} 50. Qxh6+ {[%clk 0:00:38.6]} 50... Kg8 {[%clk 0:01:16.6]} 51. Bb3+
{[%clk 0:00:39]} 51... Rf7 {[%clk 0:01:11.2]} 52. Qg6+ {[%clk 0:00:39.3]} 52...
Qg7 {[%clk 0:01:09.4]} 53. Bxf7+ {[%clk 0:00:37.8]} 53... Kf8 {[%clk 0:01:10.8]}
54. Qxg7+ {[%clk 0:00:30.5]} 54... Kxg7 {[%clk 0:01:11.7]} 55. Be6 {[%clk
0:00:16.8]} 55... Kf6 {[%clk 0:01:12.5]} 56. d7 {[%clk 0:00:16.4]} 56... Ke7
{[%clk 0:01:11.3]} 57. Kg2 {[%clk 0:00:16]} 57... a5 {[%clk 0:01:06]} 58. Kf2
{[%clk 0:00:16.5]} 58... a4 {[%clk 0:01:07.3]} 59. h4 {[%clk 0:00:17.1]} 59...
a3 {[%clk 0:01:08.4]} 60. Ke3 {[%clk 0:00:17.5]} 60... Bxd7 {[%clk 0:01:09.4]}
61. Ba2 {[%clk 0:00:16]} 61... Be6 {[%clk 0:01:10.6]} 62. Kd2 {[%clk 0:00:16.8]}
62... Bxa2 {[%clk 0:01:11.3]} 63. Kc1 {[%clk 0:00:17.6]} 63... Kf6 {[%clk
0:01:04.1]} 64. Kc2 {[%clk 0:00:18.4]} 64... Kf5 {[%clk 0:01:02.8]} 65. Kc3
{[%clk 0:00:19.2]} 65... Bf7 {[%clk 0:00:59.6]} 66. Kc2 {[%clk 0:00:19.8]} 66...
Ba2 {[%clk 0:00:58]} 67. Kc3 {[%clk 0:00:20.4]} 67... Bd5 {[%clk 0:00:57.6]} 68.
Kc2 {[%clk 0:00:20.8]} 68... Ba2 {[%clk 0:00:54.6]} 1/2-1/2

[Event "GrandPrix_30.05"]
[Site "Chess.com"]
[Date "2020.05.30"]
[Round "2"]
[White "igorkovalenko"]
[Black "Igrok3069"]
[Result "1/2-1/2"]
[WhiteElo "2365"]
[BlackElo "2634"]
[TimeControl "600+2"]
[EndTime "8:55:22 PDT"]
[Termination "Game drawn by repetition"]

1. c4 {[%clk 0:10:01.9]} 1... c6 {[%clk 0:10:00.3]} 2. Nf3 {[%clk 0:09:57.6]}
2... d5 {[%clk 0:10:01.1]} 3. d4 {[%clk 0:09:53]} 3... Nf6 {[%clk 0:10:01.5]} 4.
Nc3 {[%clk 0:09:54]} 4... e6 {[%clk 0:10:02.3]} 5. e3 {[%clk 0:09:55.2]} 5...
Nbd7 {[%clk 0:10:02.9]} 6. Qc2 {[%clk 0:09:56.4]} 6... Bd6 {[%clk 0:10:03.2]} 7.
b3 {[%clk 0:09:56.9]} 7... O-O {[%clk 0:10:03.1]} 8. Bb2 {[%clk 0:09:56.1]} 8...
e5 {[%clk 0:10:03.7]} 9. h3 {[%clk 0:09:56.1]} 9... exd4 {[%clk 0:09:38.7]} 10.
Nxd4 {[%clk 0:09:56.3]} 10... Nb6 {[%clk 0:09:33.2]} 11. g4 {[%clk 0:09:49.5]}
11... Qe7 {[%clk 0:09:08.4]} 12. g5 {[%clk 0:09:06.4]} 12... Nh5 {[%clk
0:07:26.8]} 13. Be2 {[%clk 0:08:54.5]} 13... Ng3 {[%clk 0:06:48]} 14. fxg3
{[%clk 0:08:42.8]} 14... Bxg3+ {[%clk 0:06:03.6]} 15. Kd1 {[%clk 0:08:22.5]}
15... dxc4 {[%clk 0:05:25.8]} 16. Ne4 {[%clk 0:08:08.1]} 16... Nd5 {[%clk
0:05:04.1]} 17. Kd2 {[%clk 0:07:27.4]} 17... c5 {[%clk 0:02:24.2]} 18. Rag1
{[%clk 0:00:10.6]} 18... cxd4 {[%clk 0:01:58.1]} 19. Bxd4 {[%clk 0:00:11.4]}
19... c3+ {[%clk 0:00:39.3]} 20. Kc1 {[%clk 0:00:07.9]} 20... Qa3+ {[%clk
0:00:29.3]} 21. Kd1 {[%clk 0:00:07]} 21... Bf5 {[%clk 0:00:23.5]} 22. Nf6+
{[%clk 0:00:07]} 22... Nxf6 {[%clk 0:00:12.3]} 23. Qxf5 {[%clk 0:00:08.9]} 23...
Qb2 {[%clk 0:00:07.5]} 24. Qc2 {[%clk 0:00:09.7]} 24... Ne4 {[%clk 0:00:08.6]}
25. Bd3 {[%clk 0:00:09.8]} 25... Nf2+ {[%clk 0:00:09.2]} 26. Ke2 {[%clk
0:00:11]} 26... Nxd3 {[%clk 0:00:09.3]} 27. Kxd3 {[%clk 0:00:12.3]} 27... Qxc2+
{[%clk 0:00:10.1]} 28. Kxc2 {[%clk 0:00:14.2]} 28... Bd6 {[%clk 0:00:10.9]} 29.
Kxc3 {[%clk 0:00:15.3]} 29... Rfe8 {[%clk 0:00:11.3]} 30. Kd3 {[%clk 0:00:16]}
30... Rad8 {[%clk 0:00:10.6]} 31. Rg4 {[%clk 0:00:16.5]} 31... a6 {[%clk
0:00:09.3]} 32. Rc1 {[%clk 0:00:17.7]} 32... Be7 {[%clk 0:00:08.7]} 33. h4
{[%clk 0:00:18.7]} 33... Bd6 {[%clk 0:00:09]} 34. h5 {[%clk 0:00:18]} 34... Kf8
{[%clk 0:00:09.6]} 35. Rf1 {[%clk 0:00:18.1]} 35... Be5 {[%clk 0:00:10.3]} 36.
g6 {[%clk 0:00:19.3]} 36... hxg6 {[%clk 0:00:10.4]} 37. hxg6 {[%clk 0:00:21.2]}
37... f6 {[%clk 0:00:11.3]} 38. Rh4 {[%clk 0:00:22.5]} 38... Ke7 {[%clk
0:00:11.6]} 39. Rh7 {[%clk 0:00:21.6]} 39... Rg8 {[%clk 0:00:12.3]} 40. Rc1
{[%clk 0:00:22.1]} 40... Ke6 {[%clk 0:00:12.2]} 41. Ke4 {[%clk 0:00:21.2]} 41...
Rd5 {[%clk 0:00:12.5]} 42. Rc4 {[%clk 0:00:20.6]} 42... Bxd4 {[%clk 0:00:13.1]}
43. exd4 {[%clk 0:00:22.5]} 43... Rg5 {[%clk 0:00:13.8]} 44. Rc7 {[%clk
0:00:23.6]} 44... Rg4+ {[%clk 0:00:14.3]} 45. Kd3 {[%clk 0:00:24.7]} 45... Rg3+
{[%clk 0:00:14.2]} 46. Kc4 {[%clk 0:00:25.1]} 46... b5+ {[%clk 0:00:14.6]} 47.
Kb4 {[%clk 0:00:25.4]} 47... Rxg6 {[%clk 0:00:14.6]} 48. Rc6+ {[%clk 0:00:19.6]}
48... Kd5 {[%clk 0:00:15.3]} 49. Rxa6 {[%clk 0:00:21]} 49... Rg2 {[%clk
0:00:12.8]} 50. Rh5+ {[%clk 0:00:19.2]} 50... Kxd4 {[%clk 0:00:11.7]} 51. Rxb5
{[%clk 0:00:19.3]} 51... Rf2 {[%clk 0:00:09.3]} 52. Rb7 {[%clk 0:00:15.8]} 52...
g5 {[%clk 0:00:09.9]} 53. Re6 {[%clk 0:00:15.2]} 53... Kd5 {[%clk 0:00:09.9]}
54. Rbb6 {[%clk 0:00:16]} 54... Rb8 {[%clk 0:00:08.3]} 55. Rd6+ {[%clk
0:00:12.6]} 55... Ke5 {[%clk 0:00:08.9]} 56. Re6+ {[%clk 0:00:14.1]} 56... Kd5
{[%clk 0:00:09.7]} 57. Rd6+ {[%clk 0:00:15.4]} 57... Ke5 {[%clk 0:00:11]} 58.
Re6+ {[%clk 0:00:14.7]} 58... Kd5 {[%clk 0:00:12.4]} 1/2-1/2

[Event "GrandPrix_30.05"]
[Site "Chess.com"]
[Date "2020.05.30"]
[Round "2"]
[White "TheJoker64"]
[Black "StephenDedalus83"]
[Result "0-1"]
[WhiteElo "2172"]
[BlackElo "2157"]
[TimeControl "600+2"]
[EndTime "8:55:22 PDT"]
[Termination "StephenDedalus83 won by resignation"]

1. e4 {[%clk 0:10:01.9]} 1... c5 {[%clk 0:09:59]} 2. Nf3 {[%clk 0:10:02.5]} 2...
Nc6 {[%clk 0:09:58.6]} 3. g3 {[%clk 0:10:01.6]} 3... g6 {[%clk 0:09:57.6]} 4.
Bg2 {[%clk 0:10:02.5]} 4... Bg7 {[%clk 0:09:58.2]} 5. O-O {[%clk 0:10:03.9]}
5... e5 {[%clk 0:09:51.7]} 6. c3 {[%clk 0:10:04.1]} 6... Nge7 {[%clk 0:09:50.9]}
7. d3 {[%clk 0:10:05]} 7... O-O {[%clk 0:09:33.3]} 8. a3 {[%clk 0:10:04.6]} 8...
d6 {[%clk 0:09:13.4]} 9. b4 {[%clk 0:09:53.7]} 9... a6 {[%clk 0:09:13.2]} 10.
Be3 {[%clk 0:09:50]} 10... b6 {[%clk 0:09:13.2]} 11. Nbd2 {[%clk 0:09:37.4]}
11... h6 {[%clk 0:09:10.1]} 12. Nc4 {[%clk 0:09:31.2]} 12... Be6 {[%clk
0:08:59.4]} 13. Qc1 {[%clk 0:08:44.7]} 13... Kh7 {[%clk 0:08:58.4]} 14. Nfd2
{[%clk 0:08:37.3]} 14... b5 {[%clk 0:07:45.3]} 15. Nb2 {[%clk 0:08:35.6]} 15...
cxb4 {[%clk 0:07:44.7]} 16. axb4 {[%clk 0:08:35]} 16... Qd7 {[%clk 0:06:59.7]}
17. Ra3 {[%clk 0:08:22]} 17... f5 {[%clk 0:06:30.8]} 18. f4 {[%clk 0:08:11]}
18... d5 {[%clk 0:06:31.6]} 19. Nb3 {[%clk 0:07:44.4]} 19... fxe4 {[%clk
0:05:33]} 20. dxe4 {[%clk 0:07:29.5]} 20... Bh3 {[%clk 0:05:25.5]} 21. Nc5
{[%clk 0:07:12.1]} 21... Qc8 {[%clk 0:05:26.2]} 22. Nbd3 {[%clk 0:06:02.5]}
22... Bxg2 {[%clk 0:05:23.1]} 23. Kxg2 {[%clk 0:06:02.4]} 23... exf4 {[%clk
0:05:03.6]} 24. Nxf4 {[%clk 0:05:45.8]} 24... dxe4 {[%clk 0:05:03.4]} 25. Nce6
{[%clk 0:04:39.7]} 25... Rf7 {[%clk 0:04:09.6]} 26. Nxg7 {[%clk 0:04:31.1]}
26... Rxg7 {[%clk 0:04:04.4]} 27. Bc5 {[%clk 0:04:18.4]} 27... Nf5 {[%clk
0:03:45.5]} 28. c4 {[%clk 0:03:56.1]} 28... Ne5 {[%clk 0:03:40.2]} 29. Nd5
{[%clk 0:03:42.3]} 29... Qc6 {[%clk 0:02:56.4]} 30. Qa1 {[%clk 0:03:04.4]} 30...
Nxc4 {[%clk 0:02:48.7]} 31. Nf6+ {[%clk 0:02:59.3]} 31... Kh8 {[%clk 0:02:49.4]}
32. Rxf5 {[%clk 0:02:51.8]} 32... Nxa3 {[%clk 0:01:05.3]} 33. Nh5 {[%clk
0:01:36.8]} 33... gxh5 {[%clk 0:01:04.3]} 34. Rf7 {[%clk 0:01:37.5]} 34... Rg8
{[%clk 0:01:02.4]} 35. Rf6 {[%clk 0:01:38.5]} 35... Nc2 {[%clk 0:00:57.7]} 36.
Qe5 {[%clk 0:00:54.8]} 36... Ne1+ {[%clk 0:00:30.1]} 37. Kf1 {[%clk 0:00:54.9]}
37... Nf3 {[%clk 0:00:25.2]} 38. Qc3 {[%clk 0:00:47.1]} 38... Nxh2+ {[%clk
0:00:20]} 39. Ke2 {[%clk 0:00:46]} 39... Qxf6 {[%clk 0:00:19.5]} 40. Qxf6 {[%clk
0:00:45.5]} 40... Ng4 {[%clk 0:00:21]} 41. Qe6 {[%clk 0:00:38.3]} 41... Rd8
{[%clk 0:00:20.2]} 42. Bb6 {[%clk 0:00:25.4]} 42... Rdd7 {[%clk 0:00:14.1]} 43.
Bc5 {[%clk 0:00:16.5]} 43... Kh7 {[%clk 0:00:13.4]} 44. Qxe4+ {[%clk 0:00:15.3]}
44... Rg6 {[%clk 0:00:14.4]} 45. Qe8 {[%clk 0:00:12.9]} 45... Rgg7 {[%clk
0:00:14.1]} 46. Qe4+ {[%clk 0:00:12]} 46... Rg6 {[%clk 0:00:14.3]} 47. Qe8
{[%clk 0:00:12.1]} 47... Rgg7 {[%clk 0:00:15.2]} 48. Qa8 {[%clk 0:00:11.9]}
48... Nf6 {[%clk 0:00:14.8]} 49. Qxa6 {[%clk 0:00:11]} 49... Ne4 {[%clk
0:00:15.2]} 50. Be3 {[%clk 0:00:08.4]} 50... Nxg3+ {[%clk 0:00:13.9]} 51. Ke1
{[%clk 0:00:09.6]} 51... Nf5 {[%clk 0:00:14.8]} 52. Bf4 {[%clk 0:00:07.7]} 52...
Rge7+ {[%clk 0:00:15]} 53. Kf2 {[%clk 0:00:09]} 53... Rf7 {[%clk 0:00:16.1]} 54.
Qxb5 {[%clk 0:00:06.8]} 54... Nd4 {[%clk 0:00:16.3]} 55. Qd3+ {[%clk 0:00:07.8]}
55... Kg7 {[%clk 0:00:15.1]} 56. Kg3 {[%clk 0:00:08.6]} 56... Nf5+ {[%clk
0:00:15.6]} 0-1

[Event "GrandPrix_30.05"]
[Site "Chess.com"]
[Date "2020.05.30"]
[Round "2"]
[White "guylevin1"]
[Black "madamDD"]
[Result "0-1"]
[WhiteElo "2121"]
[BlackElo "2434"]
[TimeControl "600+2"]
[EndTime "8:55:27 PDT"]
[Termination "madamDD won by resignation"]

1. c4 {[%clk 0:09:51.7]} 1... b6 {[%clk 0:09:58.5]} 2. Nf3 {[%clk 0:09:48.6]}
2... Bb7 {[%clk 0:09:57.4]} 3. d4 {[%clk 0:09:49.6]} 3... Nf6 {[%clk 0:09:41.6]}
4. g3 {[%clk 0:09:48]} 4... g6 {[%clk 0:09:34.5]} 5. Bg2 {[%clk 0:09:47.3]} 5...
Bg7 {[%clk 0:09:23.8]} 6. Nc3 {[%clk 0:09:48.6]} 6... Ne4 {[%clk 0:09:12]} 7.
Bd2 {[%clk 0:09:38.2]} 7... O-O {[%clk 0:07:17.5]} 8. O-O {[%clk 0:09:34]} 8...
d6 {[%clk 0:07:00]} 9. Nxe4 {[%clk 0:08:54.2]} 9... Bxe4 {[%clk 0:07:00.1]} 10.
Bc3 {[%clk 0:08:56.1]} 10... Nd7 {[%clk 0:06:46.7]} 11. Qd2 {[%clk 0:08:53.5]}
11... c5 {[%clk 0:06:24.3]} 12. Rfd1 {[%clk 0:08:38.9]} 12... Rc8 {[%clk
0:05:35.2]} 13. b3 {[%clk 0:08:30.9]} 13... cxd4 {[%clk 0:05:30.6]} 14. Bxd4
{[%clk 0:08:32.8]} 14... Nf6 {[%clk 0:04:57.5]} 15. Rac1 {[%clk 0:08:25.1]}
15... Qd7 {[%clk 0:04:54.4]} 16. Bb2 {[%clk 0:06:11.9]} 16... Qb7 {[%clk
0:04:51.9]} 17. h4 {[%clk 0:06:03.4]} 17... Rfd8 {[%clk 0:04:47.1]} 18. Bh3
{[%clk 0:05:24.2]} 18... Rb8 {[%clk 0:04:38.5]} 19. Nd4 {[%clk 0:05:19.1]} 19...
a6 {[%clk 0:03:23]} 20. f3 {[%clk 0:05:03.3]} 20... Bc6 {[%clk 0:03:23.4]} 21.
Nxc6 {[%clk 0:04:54.5]} 21... Qxc6 {[%clk 0:03:25.3]} 22. e4 {[%clk 0:04:55.1]}
22... b5 {[%clk 0:02:42.9]} 23. cxb5 {[%clk 0:04:45.2]} 23... Qxb5 {[%clk
0:02:44.8]} 24. Rc2 {[%clk 0:02:49.4]} 24... Nd7 {[%clk 0:02:37]} 25. Bxg7
{[%clk 0:02:39.6]} 25... Kxg7 {[%clk 0:02:38.9]} 26. Bxd7 {[%clk 0:02:38.6]}
26... Rxd7 {[%clk 0:02:24.1]} 27. Qd4+ {[%clk 0:02:33.7]} 27... e5 {[%clk
0:01:57.7]} 28. Qc4 {[%clk 0:02:26.4]} 28... Qb6+ {[%clk 0:01:57.7]} 29. Kg2
{[%clk 0:02:25.4]} 29... Rbb7 {[%clk 0:01:41.7]} 30. Qe2 {[%clk 0:01:44.1]}
30... Rbc7 {[%clk 0:01:29.8]} 31. Rdc1 {[%clk 0:01:42.2]} 31... Rxc2 {[%clk
0:01:23.6]} 32. Rxc2 {[%clk 0:01:43.1]} 32... d5 {[%clk 0:01:21.4]} 33. exd5
{[%clk 0:01:43.6]} 33... Rxd5 {[%clk 0:01:22.1]} 34. Rd2 {[%clk 0:01:44.3]}
34... Rxd2 {[%clk 0:01:05.2]} 35. Qxd2 {[%clk 0:01:46.2]} 35... Qc6 {[%clk
0:00:52]} 36. Qe2 {[%clk 0:01:31.5]} 36... Kf6 {[%clk 0:00:48.8]} 37. a4 {[%clk
0:01:20.3]} 37... h5 {[%clk 0:00:36.7]} 38. Qd3 {[%clk 0:00:45.7]} 38... Ke6
{[%clk 0:00:32.9]} 39. Kf2 {[%clk 0:00:46.5]} 39... f5 {[%clk 0:00:29.6]} 40.
Ke2 {[%clk 0:00:16]} 40... Ke7 {[%clk 0:00:17.8]} 41. Qd2 {[%clk 0:00:14.2]}
41... e4 {[%clk 0:00:13.5]} 42. fxe4 {[%clk 0:00:12.2]} 42... fxe4 {[%clk
0:00:12.5]} 43. Qb4+ {[%clk 0:00:12.9]} 43... Kf6 {[%clk 0:00:11.8]} 44. Ke3
{[%clk 0:00:13.6]} 44... Kf5 {[%clk 0:00:08.9]} 45. Qa5+ {[%clk 0:00:13.2]}
45... Kg4 {[%clk 0:00:08.3]} 46. Qg5+ {[%clk 0:00:13.8]} 46... Kh3 {[%clk
0:00:09.3]} 47. Qf4 {[%clk 0:00:08.5]} 47... Qc3+ {[%clk 0:00:07.9]} 48. Kxe4
{[%clk 0:00:09.8]} 48... Qxb3 {[%clk 0:00:08.2]} 49. a5 {[%clk 0:00:05.3]} 49...
Qxg3 {[%clk 0:00:08]} 50. Qf1+ {[%clk 0:00:04.4]} 50... Qg2+ {[%clk 0:00:08.4]}
51. Qxg2+ {[%clk 0:00:05.4]} 51... Kxg2 {[%clk 0:00:09.7]} 52. Kf4 {[%clk
0:00:05.3]} 52... Kh3 {[%clk 0:00:09.7]} 53. Kg5 {[%clk 0:00:06.5]} 53... Kg3
{[%clk 0:00:11]} 54. Kxg6 {[%clk 0:00:06.7]} 54... Kxh4 {[%clk 0:00:12.4]} 55.
Kf5 {[%clk 0:00:08]} 55... Kg3 {[%clk 0:00:13.1]} 56. Ke6 {[%clk 0:00:09]} 56...
h4 {[%clk 0:00:14.4]} 57. Kd6 {[%clk 0:00:10.7]} 57... h3 {[%clk 0:00:15.9]} 58.
Kc6 {[%clk 0:00:12.4]} 58... h2 {[%clk 0:00:17.3]} 59. Kb6 {[%clk 0:00:14.1]}
59... h1=Q {[%clk 0:00:18.4]} 60. Kxa6 {[%clk 0:00:16]} 60... Qa8+ {[%clk
0:00:19]} 0-1